bitfinex-derivatives/quotes_ETHF0:USTF0_20250416
["timestamp","ask_amount","ask_price","bid_price","bid_amount"]
[1744798972532,1.26672,1579.0,1578.9,42.06677]
[1744798972732,2.93702,1579.0,1578.9,1.26677]
[1744798972933,1.6703,1579.0,1578.8,0.00949457]
[1744798973142,1.6703,1579.0,1578.9,1.2668]
[1744798973531,2.93702,1579.0,1578.9,1.2668]
[1744798973733,2.93702,1579.0,1578.9,42.0668]
[1744798974141,1.6703,1579.0,1578.9,42.0668]
[1744798974345,0.00949457,1579.1,1579.0,1.26672]
[1744798974538,0.00023429,1579.1,1579.0,1.26672]
[1744798974734,0.00023429,1579.1,1579.0,2.96292]
[1744798974935,1.70553429,1579.1,1579.0,2.96292]
[1744798976642,2.97217429,1579.1,1579.0,2.96292]
[1744798977034,1.70553429,1579.1,1579.0,2.96292]
[1744798978240,0.00023429,1579.1,1579.0,2.96292]
[1744798978550,0.00023429,1579.1,1579.0,12.63392]
[1744798978843,3.2078,1579.9,1579.0,12.63392]
[1744798978844,2.9131,1579.7,1579.6,1.26624]
[1744798980144,1.26624,1579.6,1579.5,1.27576457]
[1744798980339,2.95324,1579.6,1579.5,1.27576457]
[1744798981146,1.687,1579.6,1579.5,1.27576457]
[1744798981450,1.6912,1579.7,1579.6,1.26624]
[1744798981744,2.09136,1579.7,1579.6,1.26624]
[1744798981943,3.77836,1579.7,1579.6,1.26624]
[1744798982146,1.26616,1579.7,1579.6,1.26624]
[1744798982850,3.2078,1579.9,1579.8,1.26608]
[1744798983039,4.8576,1579.9,1579.8,1.26608]
[1744798983542,4.8576,1579.9,1579.6,1.2662]
[1744798983543,1.26621,1579.7,1579.6,1.2662]
[1744798983840,1.26621,1579.7,1579.5,0.00949457]
[1744798983841,1.26624,1579.6,1579.5,0.00949457]
[1744798984043,3.73514,1579.6,1579.5,0.00949457]
[1744798985047,2.4689,1579.6,1579.5,1.27581457]
[1744798985243,2.4689,1579.6,1579.5,0.00949457]
[1744798985244,3.73514,1579.6,1579.5,0.00949457]
[1744798985444,6.94294,1579.6,1579.5,0.00949457]
[1744798985640,3.2078,1579.6,1579.5,0.00949457]
[1744798985841,1.26614,1579.8,1579.6,1.26624]
[1744798985842,1.6484,1579.7,1579.6,1.26624]
[1744798986544,3.2078,1579.9,1579.8,1.26608]
[1744798986842,4.8562,1579.9,1579.8,1.26608]
[1744798987653,6.1222,1579.9,1579.8,1.26608]
[1744798988048,4.8562,1579.9,1579.8,1.26608]
[1744798988955,3.2078,1580.0,1579.9,1.266]
[1744798989149,3.2078,1580.0,1579.7,4.86486]
[1744798989449,1.7673,1579.9,1579.8,1.26608]
[1744798989848,1.7673,1579.9,1579.8,3.02808]
[1744798990452,3.0333,1579.9,1579.8,3.02808]
[1744798990752,1.7673,1579.9,1579.8,3.02808]
[1744798990954,3.2078,1580.0,1579.9,1.266]
[1744798991154,4.9751,1580.0,1579.9,3.028]
[1744798991550,0.02374,1580.2,1580.1,1.26584]
[1744798991952,0.02374,1580.2,1580.1,42.06584]
[1744798992147,0.02374,1580.2,1580.1,48.73754]
[1744798992343,3.2078,1580.8,1580.7,1.26536]
[1744798993149,3.2078,1580.8,1580.7,2.93706]
[1744798993350,3.2078,1581.0,1580.7,1.6717]
[1744798993663,1.26536,1580.7,1580.6,1.27491457]
[1744798993853,4.47316,1580.7,1580.6,1.27491457]
[1744798994056,1.26534,1580.8,1580.6,1.27491457]
[1744798994249,1.6486,1580.7,1580.6,1.27491457]
[1744798994455,6.12176,1580.7,1580.6,0.00949457]
[1744798994760,6.12176,1580.7,1580.6,40.80949457]
[1744798995253,11.12176,1580.7,1580.6,40.80949457]
[1744798995451,11.12176,1580.7,1580.6,0.00949457]
[1744798995652,1.26568,1580.3,1580.2,1.26573]
[1744798995860,1.26577,1580.2,1580.0,1.6608]
[1744798996049,2.98707,1580.2,1580.1,1.26582]
[1744798996250,2.98707,1580.2,1580.0,2.92666]
[1744798996449,1.26584,1580.1,1580.0,1.6608]
[1744798996656,1.26592,1580.0,1579.9,8.49366785]
[1744798996857,3.2078,1580.3,1579.9,8.50316242]
[1744798997166,1.26568,1580.3,1580.1,1.26578]
[1744798997355,1.26568,1580.3,1580.2,1.26576]
[1744798997556,7.8768,1580.5,1580.0,1.6608]
[1744798997853,11.04062,1580.5,1580.1,1.26579]
[1744798998056,1.26584,1580.1,1580.0,2.92665]
[1744798998255,1.26584,1580.1,1580.0,1.6608]
[1744798998461,1.26584,1580.1,1580.0,2.92672]
[1744798999757,1.26584,1580.1,1580.0,1.6608]
[1744798999964,1.26566,1580.4,1580.2,1.26571]
[1744799000266,1.26568,1580.3,1580.2,1.26571]
[1744799000766,1.26568,1580.3,1580.1,1.768]
[1744799001061,1.26568,1580.3,1580.2,1.26576]
[1744799001459,3.2078,1580.6,1580.2,11.3722]
[1744799001767,1.26557,1580.5,1580.4,1.26558]
[1744799002162,4.47329,1580.6,1580.5,1.26552]
[1744799002471,3.2078,1580.6,1580.5,1.26552]
[1744799002662,2.12538,1580.7,1580.6,1.26544]
[1744799002961,2.12541,1580.7,1580.6,1.26544]
[1744799003162,0.00949457,1580.8,1580.7,1.26536]
[1744799003363,1.27477457,1580.8,1580.7,42.06536]
[1744799003566,0.00949457,1580.8,1580.7,42.06536]
[1744799003766,0.00949457,1580.8,1580.7,43.68196]
[1744799005167,0.00949457,1580.8,1580.7,53.59096]
[1744799005370,4.47276,1581.2,1581.1,1.26504]
[1744799005869,1.26504,1581.1,1581.0,2.94054]
[1744799006058,3.2078,1581.2,1581.1,1.26504]
[1744799006367,3.2078,1581.8,1581.2,3.1624]
[1744799006572,1.26474,1581.5,1581.4,1.26478]
[1744799006867,1.26482,1581.4,1581.2,1.6755]
[1744799007062,1.26482,1581.4,1581.3,1.26488]
[1744799007063,4.47262,1581.4,1581.3,1.26488]
[1744799007258,1.6271,1581.5,1581.4,1.2648]
[1744799007459,2.89182,1581.5,1581.4,1.2648]
[1744799007867,2.89182,1581.5,1581.3,1.26482]
[1744799008463,1.6271,1581.5,1581.4,1.2648]
[1744799008672,2.89182,1581.5,1581.4,1.2648]
[1744799008865,1.6271,1581.5,1581.4,1.2648]
[1744799009262,3.2078,1581.8,1581.3,3.16218]
[1744799009458,3.2078,1581.8,1581.4,1.6657]
[1744799009770,3.2078,1581.8,1581.7,1.26456]
[1744799009970,4.47228,1581.8,1581.7,1.26456]
[1744799010169,9.8739,1582.1,1581.9,1.26439]
[1744799010470,3.02241,1582.1,1581.9,1.26439]
[1744799010765,1.26432,1582.0,1581.9,1.2644]
[1744799010968,6.23018,1582.1,1582.0,1.26432]
[1744799011164,4.9659,1582.1,1582.0,42.06432]
[1744799011361,6.23014,1582.1,1582.0,40.8]
[1744799012763,11.23014,1582.1,1582.0,40.8]
[1744799013068,1.2644,1581.9,1581.8,0.00949457]
[1744799013260,3.1612,1581.8,1581.0,4.907]
[1744799013457,6.369,1581.8,1581.2,1.6027]
[1744799013661,1.26469,1581.6,1581.2,4.76503]
[1744799013860,1.26464,1581.6,1581.5,1.26472]
[1744799014069,1.26462,1581.7,1581.5,42.06464]
[1744799014269,1.27412457,1581.7,1581.5,40.8]
[1744799014570,4.48192457,1581.7,1581.6,1.26464]
[1744799014770,4.48192457,1581.7,1581.6,1.6027]
[1744799014967,1.27412457,1581.7,1581.6,1.6027]
[1744799015469,1.26464,1581.6,1581.5,40.8]
[1744799015665,4.68644,1581.6,1581.5,40.8]
[1744799015865,1.26472,1581.5,1581.4,0.00949457]
[1744799016065,6.18882,1581.5,1581.4,0.00949457]
[1744799016262,16.09482,1581.5,1581.4,0.00949457]
[1744799016871,3.2078,1581.5,1581.4,1.27429457]
[1744799017064,6.18882,1581.5,1581.4,1.27429457]
[1744799018276,6.18882,1581.5,1581.4,0.00949457]
[1744799019776,11.18882,1581.5,1581.4,0.00949457]
[1744799020167,9.47252,1581.5,1581.4,0.00949457]
[1744799020374,4.47252,1581.5,1581.4,1.27429457]
[1744799020573,4.47252,1581.5,1581.4,0.00949457]
[1744799021072,6.15182,1581.5,1581.4,1.27429457]
[1744799021274,6.15182,1581.5,1581.4,0.00949457]
[1744799021468,2.94402,1581.5,1581.4,0.00949457]
[1744799021666,6.15182,1581.5,1581.4,0.00949457]
[1744799021872,6.15182,1581.5,1581.4,1.27429457]
[1744799022178,6.15182,1581.5,1581.4,0.00949457]
[1744799023871,16.05782,1581.5,1581.4,0.00949457]
[1744799024268,4.47252,1581.5,1581.4,0.00949457]
[1744799024475,4.47252,1581.5,1581.4,1.27429457]
[1744799025069,4.47252,1581.5,1581.4,0.00949457]
[1744799025681,9.47252,1581.5,1581.4,0.00949457]
[1744799026379,4.47252,1581.5,1581.4,0.00949457]
[1744799028979,4.47252,1581.5,1580.8,0.8074]
[1744799028980,8.2078,1581.5,1580.8,0.8074]
[1744799029281,1.26514,1581.0,1580.9,1.2652]
[1744799029480,1.26514,1581.0,1580.9,42.0652]
[1744799029684,2.95194,1581.0,1580.9,42.0652]
[1744799030080,2.95194,1581.0,1580.9,40.8]
[1744799030281,2.95194,1581.0,1580.9,42.0652]
[1744799030479,2.95194,1581.0,1580.9,40.8]
[1744799030679,2.95194,1581.0,1580.9,42.0652]
[1744799031174,2.95194,1581.0,1580.9,40.8]
[1744799031483,1.2652,1580.9,1580.8,0.00949457]
[1744799031676,6.2252,1580.9,1580.8,0.00949457]
[1744799032079,1.26552,1580.5,1580.4,1.26558]
[1744799032376,1.26552,1580.5,1580.4,40.8]
[1744799032582,4.47332,1580.5,1580.4,40.8]
[1744799033075,6.22552,1580.5,1580.4,40.8]
[1744799034177,1.2656,1580.4,1580.3,0.00949457]
[1744799034372,2.9496,1580.4,1580.3,0.00949457]
[1744799034568,1.2656,1580.4,1580.3,1.27511457]
[1744799034779,1.684,1580.5,1580.4,1.2656]
[1744799034979,2.94952,1580.5,1580.4,1.2656]
[1744799035574,1.2656,1580.4,1580.3,42.44649457]
[1744799035770,1.684,1580.4,1580.3,43.71212457]
[1744799036381,2.9496,1580.4,1580.3,43.71212457]
[1744799036582,6.1574,1580.4,1580.3,40.80949457]
[1744799037180,2.9496,1580.4,1580.3,42.07517457]
[1744799037480,2.9496,1580.4,1580.3,40.80949457]
[1744799037983,2.9496,1580.4,1580.3,42.07517457]
[1744799038177,2.9496,1580.4,1580.3,40.80949457]
[1744799038377,6.1574,1580.4,1580.3,40.80949457]
[1744799038981,2.9496,1580.4,1580.3,42.07517457]
[1744799039182,2.9496,1580.4,1580.3,40.80949457]
[1744799040184,2.9496,1580.4,1580.3,0.00949457]
[1744799040682,2.9496,1580.4,1580.3,40.80949457]
[1744799040884,2.9496,1580.4,1580.3,42.07517457]
[1744799041183,2.9496,1580.4,1580.3,42.44589457]
[1744799041685,2.9496,1580.4,1580.3,43.71157457]
[1744799041878,2.9496,1580.4,1580.3,40.80949457]
[1744799042085,1.2659,1580.1,1579.9,1.6364]
[1744799042382,1.26582,1580.2,1580.1,1.26582]
[1744799042684,1.26584,1580.1,1580.0,2.90226]
[1744799043083,2.85873,1580.2,1580.1,1.26584]
[1744799043481,6.06653,1580.2,1580.1,2.90004]
[1744799043685,1.26584,1580.1,1580.0,40.8]
[1744799043887,1.26584,1580.1,1579.9,2.90965457]
[1744799043888,1.26592,1580.0,1579.9,2.90965457]
[1744799044483,3.2078,1580.4,1580.3,1.26564]
[1744799044676,4.47344,1580.4,1580.1,3.1646]
[1744799044875,4.47344,1580.4,1580.3,1.26568]
[1744799045085,1.26568,1580.3,1580.2,2.4588]
[1744799045288,3.2078,1580.4,1580.3,1.26568]
[1744799045482,3.2078,1580.4,1580.3,2.89988]
[1744799045682,4.4734,1580.4,1580.3,2.89988]
[1744799046078,3.2078,1580.4,1580.3,1.6342]
[1744799046383,2.94995,1580.5,1580.4,1.2656]
[1744799046584,1.26553,1580.5,1580.4,1.26553]
[1744799046785,1.27500457,1580.6,1580.4,1.26553]
[1744799046983,3.03763457,1580.6,1580.5,1.629]
[1744799047288,1.77219457,1580.6,1580.4,1.26554]
[1744799047588,4.9705,1580.5,1580.4,1.26554]
[1744799048588,1.2656,1580.4,1580.3,2.89463]
[1744799048781,4.9705,1580.5,1580.3,1.629]
[1744799048977,6.23605,1580.5,1580.4,1.629]
[1744799049889,1.26568,1580.3,1580.2,2.09031]
[1744799050089,4.47348,1580.3,1580.2,3.72161]
[1744799050285,4.47348,1580.3,1580.2,2.89706]
[1744799050789,4.47348,1580.3,1580.2,1.6313]
[1744799051386,4.47348,1580.3,1580.2,2.89706]
[1744799051594,4.47348,1580.3,1580.2,1.6313]
[1744799052388,1.26576,1580.2,1580.1,1.26584]
[1744799052684,1.26584,1580.1,1580.0,2.86915]
[1744799052885,4.47364,1580.1,1580.0,1.6033]
[1744799053091,4.47364,1580.1,1579.9,40.80949457]
[1744799053092,1.26592,1580.0,1579.9,40.80949457]
[1744799053285,2.93702,1580.0,1579.9,40.80949457]
[1744799053686,7.85402,1580.0,1579.9,0.00949457]
[1744799054895,7.85402,1580.0,1579.9,1.27549457]
[1744799055091,7.85402,1580.0,1579.9,0.00949457]
[1744799056795,1.26616,1579.7,1579.6,40.8]
[1744799056993,4.47396,1579.7,1579.6,40.8]
[1744799057188,1.26624,1579.6,1579.5,2.89125]
[1744799057402,3.02694,1579.6,1579.5,2.89125]
[1744799057696,3.02694,1579.6,1579.5,43.69125]
[1744799058701,8.13529457,1579.7,1579.6,1.26624]
[1744799058901,8.13529457,1579.7,1579.6,2.93094]
[1744799059098,8.13529457,1579.7,1579.5,42.06625]
[1744799059304,2.92954,1579.6,1579.5,40.8]
[1744799059600,1.26632,1579.5,1579.4,0.00949457]
[1744799059807,6.13742,1579.5,1579.4,0.00949457]
[1744799063205,11.25859457,1579.7,1579.4,0.00949457]
[1744799063206,1.27566457,1579.7,1579.6,1.26624]
[1744799063400,1.27565457,1579.7,1579.6,1.26624]
[1744799064293,3.03695457,1579.7,1579.6,1.26624]
[1744799064607,0.00949457,1579.7,1579.6,1.26624]
[1744799065103,0.00949457,1579.7,1579.6,2.14384]
[1744799065308,4.48345457,1579.7,1579.6,2.14384]
[1744799066004,0.00949457,1579.7,1579.6,2.14384]
[1744799066704,1.27565457,1579.7,1579.6,2.14384]
[1744799068405,1.27565457,1579.7,1579.5,1.5932]
[1744799068406,1.26624,1579.6,1579.5,2.85946]
[1744799068599,2.91594,1579.6,1579.5,2.85946]
[1744799068904,1.27570457,1579.7,1579.6,1.26624]
[1744799069104,1.27570457,1579.7,1579.6,2.92714]
[1744799070100,2.92540457,1579.7,1579.6,2.92714]
[1744799072214,2.92540457,1579.7,1579.6,1.26624]
[1744799072911,2.92540457,1579.7,1579.5,1.677]
[1744799073111,1.26632,1579.5,1579.4,1.27588457]
[1744799073616,2.90232,1579.5,1579.4,1.27588457]
[1744799073913,3.75842,1579.5,1579.4,1.27589457]
[1744799074512,3.75842,1579.5,1579.4,0.00949457]
[1744799075919,8.75842,1579.5,1579.4,0.00949457]
[1744799077014,3.75842,1579.5,1579.4,0.00949457]
[1744799081415,1.26664,1579.1,1579.0,1.26668]
[1744799081720,1.26672,1579.0,1578.9,3.0258]
[1744799081914,1.26672,1579.0,1578.9,43.81653972]
[1744799082511,2.95899,1579.1,1579.0,1.26672]
[1744799082717,2.95899,1579.1,1578.9,42.06673]
[1744799082718,1.26672,1579.0,1578.9,42.06673]
[1744799082920,1.26672,1579.0,1578.9,2.87583]
[1744799083421,1.26671,1579.1,1579.0,1.26669]
[1744799083620,1.25745972,1579.0,1578.9,2.87585]
[1744799083823,1.25745972,1579.0,1578.9,43.66658972]
[1744799085017,4.46525972,1579.0,1578.9,42.39983972]
[1744799085217,1.2668,1578.9,1578.8,0.00632972]
[1744799085418,3.7489,1578.9,1578.8,0.00632972]
[1744799087323,3.7489,1578.9,1578.8,1.27320972]
[1744799088120,3.2078,1579.0,1578.9,1.2668]
[1744799088321,3.2078,1579.0,1578.9,3.0082]
[1744799089131,3.2078,1579.0,1578.9,8.0082]
[1744799089335,4.901,1579.2,1579.1,1.26664]
[1744799089528,3.78853,1579.3,1579.2,1.26656]
[1744799089730,1.26653,1579.3,1579.2,1.26656]
[1744799090231,11.03764,1579.4,1579.3,1.26648]
[1744799090735,1.26648,1579.3,1579.2,2.86621]
[1744799091836,7.82985,1579.4,1579.3,1.26648]
[1744799092034,6.5634,1579.4,1579.3,2.86618]
[1744799092237,7.8298,1579.4,1579.3,2.86618]
[1744799092929,1.26656,1579.2,1579.1,2.10307]
[1744799093232,2.89484,1579.3,1579.2,1.26656]
[1744799093532,2.89484,1579.3,1579.2,2.89446]
[1744799093736,1.6283,1579.3,1579.2,2.89446]
[1744799094034,2.89478,1579.3,1579.2,2.89446]
[1744799094830,2.89478,1579.3,1579.2,1.6279]
[1744799095031,2.89478,1579.3,1579.2,2.89446]
[1744799095540,1.26666,1579.1,1579.0,1.26672]
[1744799095739,1.26666,1579.1,1579.0,2.93942]
[1744799096034,4.9392,1579.2,1579.0,1.6727]
[1744799096239,2.99801,1579.2,1579.1,1.26664]
[1744799100944,1.2668,1579.0,1578.9,1.26676]
[1744799101144,1.2668,1579.0,1578.9,1.25749972]
[1744799101346,2.9413,1579.0,1578.9,1.6447]
[1744799101946,2.9413,1579.0,1578.9,2.9115]
[1744799106251,2.9413,1579.0,1578.9,1.6447]
[1744799106440,2.9413,1579.0,1578.8,2.14085972]
[1744799106441,1.2668,1578.9,1578.8,0.00632972]
[1744799106744,1.26704,1578.6,1578.5,1.26705]
[1744799107749,2.97634,1578.6,1578.5,1.26705]
[1744799108347,0.88059457,1578.7,1578.6,1.26704]
[1744799108647,0.00949457,1578.7,1578.6,1.26704]
[1744799109551,1.27645457,1578.7,1578.6,1.26704]
[1744799109753,0.00949457,1578.7,1578.6,1.26704]
[1744799109952,1.26704,1578.6,1578.5,2.88924]
[1744799110152,2.98581457,1578.7,1578.6,1.26704]
[1744799110451,2.98581457,1578.7,1578.6,2.88924]
[1744799112854,9.10214,1579.4,1578.8,3.16721]
[1744799113050,2.86616972,1579.3,1579.2,1.26656]
[1744799114257,1.59963972,1579.3,1579.2,1.26656]
[1744799114660,0.00949457,1579.4,1579.3,1.26648]
[1744799114859,0.864,1579.8,1579.7,1.26616]
[1744799115459,2.13008,1579.8,1579.7,42.06616]
[1744799115857,0.864,1579.8,1579.7,42.06616]
[1744799117758,3.89068,1579.8,1579.7,42.06616]
[1744799117964,2.6246,1579.8,1579.7,42.06616]
[1744799119662,3.89068,1579.8,1579.7,42.06616]
[1744799120667,3.89068,1579.8,1579.7,40.8]
[1744799122178,3.89068,1579.8,1579.7,42.06616]
[1744799122475,3.89068,1579.8,1579.7,40.8]
[1744799123273,3.89068,1579.8,1579.7,42.06616]
[1744799123471,3.89068,1579.8,1579.7,40.8]
[1744799123672,3.89068,1579.8,1579.7,42.06616]
[1744799124672,3.89068,1579.8,1579.7,1.26616]
[1744799124879,2.6246,1579.8,1579.7,1.26616]
[1744799125179,3.89068,1579.8,1579.7,42.06616]
[1744799125384,3.89068,1579.8,1579.7,40.8]
[1744799125683,3.89068,1579.8,1579.7,42.06616]
[1744799127076,2.6246,1579.8,1579.7,42.06616]
[1744799128180,3.89068,1579.8,1579.7,42.06616]
[1744799128582,2.6246,1579.8,1579.7,42.06616]
[1744799128883,3.89068,1579.8,1579.7,42.06616]
[1744799129685,2.6246,1579.8,1579.7,42.06616]
[1744799129883,0.00949457,1579.9,1579.8,1.26608]
[1744799130078,0.00949457,1579.9,1579.8,2.89908]
[1744799130283,0.00949457,1579.9,1579.8,7.89908]
[1744799130684,0.00949457,1579.9,1579.8,48.69908]
[1744799131078,0.00949457,1579.9,1579.8,51.90688]
[1744799134588,1.6094,1580.2,1580.1,1.26584]
[1744799134979,1.6094,1580.2,1580.1,2.97834]
[1744799135688,2.87516,1580.2,1580.1,2.97834]
[1744799136486,2.87516,1580.2,1580.1,1.26584]
[1744799137485,1.26584,1580.1,1580.0,1.27534457]
[1744799137687,2.88074,1580.1,1580.0,1.27534457]
[1744799137881,1.6149,1580.1,1580.0,1.27534457]
[1744799138087,1.6149,1580.1,1580.0,43.69124457]
[1744799138490,2.11185457,1580.3,1580.2,1.26576]
[1744799138790,3.78015457,1580.3,1580.2,1.26576]
[1744799143094,1.26581,1580.2,1580.1,1.26576]
[1744799143398,2.89851,1580.2,1580.1,1.26576]
[1744799143580,1.6327,1580.2,1580.1,1.26576]
[1744799143781,1.6327,1580.2,1580.1,43.73236]
[1744799144392,2.89846,1580.2,1580.1,43.73236]
[1744799144596,1.6327,1580.2,1580.1,43.73236]
[1744799145095,1.6327,1580.2,1580.1,42.06576]
[1744799145295,2.89846,1580.2,1580.1,40.8]
[1744799146288,2.89846,1580.2,1580.1,42.06584]
[1744799146595,2.89846,1580.2,1580.1,40.8]
[1744799146796,6.10626,1580.2,1580.1,40.8]
[1744799148494,1.26584,1580.1,1580.0,0.00949457]
[1744799148698,1.26616,1579.7,1579.6,2.99609]
[1744799148994,1.26616,1579.7,1579.6,43.79609]
[1744799149195,4.8462,1579.8,1579.7,1.26616]
[1744799149695,6.11234,1579.8,1579.7,1.26616]
[1744799150799,4.8462,1579.8,1579.7,1.26616]
[1744799151202,6.11228,1579.8,1579.7,1.26616]
[1744799154501,2.90448,1579.8,1579.7,1.26616]
[1744799156100,1.26616,1579.7,1579.6,43.80555457]
[1744799156402,2.93746,1579.7,1579.6,43.80555457]
[1744799156603,1.6713,1579.7,1579.6,43.80555457]
[1744799159207,2.93746,1579.7,1579.6,43.80555457]
[1744799159406,1.6713,1579.7,1579.6,43.80555457]
[1744799160109,1.6928,1580.0,1579.9,1.266]
[1744799160305,4.9246,1580.1,1580.0,1.26592]
[1744799160505,4.9246,1580.1,1580.0,2.90402]
[1744799160810,6.19044,1580.1,1580.0,1.26592]
[1744799162008,0.8263,1580.2,1580.1,1.26584]
[1744799162608,3.69556,1580.2,1580.1,3.01654]
[1744799162810,3.69556,1580.2,1580.1,1.26584]
[1744799163604,2.4298,1580.2,1580.1,1.26584]
[1744799163912,2.4298,1580.2,1580.1,3.01654]
[1744799164910,3.69556,1580.2,1580.1,3.01654]
[1744799165107,2.4298,1580.2,1580.1,3.01654]
[1744799165706,3.69556,1580.2,1580.1,3.01654]
[1744799165907,1.26584,1580.1,1579.9,1.266]
[1744799166113,2.91424,1580.1,1580.0,1.26585]
[1744799166606,2.91424,1580.1,1580.0,2.89955]
[1744799168607,3.16482,1580.0,1579.8,1.6328]
[1744799168815,3.2078,1579.9,1579.8,1.26604]
[1744799169018,6.18051,1579.9,1579.8,1.26604]
[1744799171413,1.26608,1579.8,1579.7,1.7689]
[1744799171614,3.73378,1579.8,1579.7,3.035]
[1744799171818,2.4677,1579.8,1579.7,3.035]
[1744799172018,4.559,1580.0,1579.9,1.266]
[1744799172318,1.26591,1580.1,1580.0,1.26592]
[1744799172517,2.92221,1580.1,1580.0,2.88262]
[1744799172920,6.179,1580.2,1580.1,1.26584]
[1744799173122,0.8114,1580.2,1580.1,2.88254]
[1744799173416,6.13934457,1580.3,1580.2,1.26576]
[1744799173617,6.13934457,1580.3,1580.2,2.88246]
[1744799175323,6.13934457,1580.3,1580.2,1.6167]
[1744799176629,2.93154457,1580.3,1580.2,1.6167]
[1744799176924,2.93154457,1580.3,1580.2,2.88246]
[1744799177124,6.13934457,1580.3,1580.2,2.88246]
[1744799177425,3.16441,1580.2,1580.0,0.8637]
[1744799177621,1.26592,1580.0,1579.9,3.00363]
[1744799178025,1.26592,1580.0,1579.9,1.26593]
[1744799178226,2.88072,1580.0,1579.9,1.26593]
[1744799178531,1.266,1579.9,1579.8,1.26602]
[1744799178828,3.7278,1579.9,1579.8,1.26602]
[1744799180929,1.26608,1579.8,1579.7,3.8206]
[1744799181127,2.99718,1579.8,1579.7,3.8206]
[1744799182032,0.847,1579.9,1579.7,3.8206]
[1744799182223,0.847,1579.9,1579.8,2.96558]
[1744799182831,2.99706,1580.0,1579.9,1.266]
[1744799183031,2.99706,1580.0,1579.9,2.9655]
[1744799183233,1.7311,1580.0,1579.9,2.9655]
[1744799183529,2.99702,1580.0,1579.9,2.9655]
[1744799185834,2.99702,1580.0,1579.9,1.266]
[1744799186028,1.26608,1579.9,1579.8,1.26602]
[1744799186227,1.26608,1579.8,1579.7,3.80149]
[1744799186931,3.01938,1579.8,1579.7,3.80149]
[1744799187128,3.01938,1579.8,1579.7,2.98469]
[1744799187321,1.26616,1579.7,1579.6,0.00949457]
[1744799187526,4.69816,1579.7,1579.6,0.00949457]
[1744799187725,4.69816,1579.7,1579.6,1.27573457]
[1744799187930,4.69816,1579.7,1579.6,0.00949457]
[1744799191037,3.16592,1579.5,1579.0,8.49366785]
[1744799191226,1.26664,1579.1,1579.0,8.49366785]
[1744799191428,4.47444,1579.1,1579.0,8.49366785]
[1744799191933,4.47444,1579.1,1579.0,49.29366785]
[1744799191934,1.26664,1579.1,1579.0,49.29366785]
[1744799192133,6.91464,1579.1,1579.0,49.29366785]
[1744799192334,6.91464,1579.1,1579.0,40.8]
[1744799193731,1.26672,1579.0,1578.9,8.50316242]
[1744799193928,2.99572,1579.0,1578.9,8.49390214]
[1744799194237,2.99572,1579.0,1578.9,49.29390214]
[1744799194537,6.20352,1579.0,1578.9,49.29390214]
[1744799195635,6.20352,1579.0,1578.9,50.56070214]
[1744799196039,4.9368,1579.0,1578.9,50.56070214]
[1744799196335,3.2078,1579.0,1578.9,57.25280214]
[1744799196525,3.2078,1579.0,1578.9,58.91870214]
[1744799196724,3.2078,1579.0,1578.9,50.42503429]
[1744799197032,3.2078,1579.0,1578.9,45.42503429]
[1744799198740,8.86320457,1579.2,1579.0,1.26668]
[1744799199036,1.62423972,1579.1,1579.0,2.99918]
[1744799199339,2.89095972,1579.1,1579.0,1.7325]
[1744799199639,1.26672,1579.0,1578.9,43.73286429]
[1744799200743,4.48394457,1579.2,1579.1,1.26664]
[1744799201033,1.27611457,1579.2,1579.1,1.26664]
[1744799201236,0.00949457,1579.2,1579.1,1.26664]
[1744799201438,0.00949457,1579.2,1579.1,2.99914]
[1744799201737,0.00949457,1579.2,1579.1,7.99914]
[1744799202732,0.00949457,1579.2,1579.1,2.99914]
[1744799204143,0.00949457,1579.2,1579.1,7.99914]
[1744799204837,3.2078,1579.5,1579.1,6.7325]
[1744799205036,0.11022268,1580.2,1579.1,6.7325]
[1744799205037,4.47366,1580.1,1579.8,1.26608]
[1744799205232,1.26586,1580.1,1580.0,1.26592]
[1744799205438,2.86939,1580.2,1580.1,1.26584]
[1744799205638,2.86939,1580.2,1580.1,2.88944]
[1744799205838,1.26584,1580.1,1580.0,40.8]
[1744799206041,2.86944,1580.1,1580.0,40.80949457]
[1744799206240,2.86944,1580.1,1580.0,42.07541457]
[1744799206748,2.86944,1580.1,1580.0,43.69901457]
[1744799208539,2.86944,1580.1,1580.0,40.80949457]
[1744799209444,6.07724,1580.1,1580.0,40.80949457]
[1744799210246,6.07724,1580.1,1580.0,0.00949457]
[1744799214549,2.86944,1580.1,1580.0,0.00949457]
[1744799214848,6.07724,1580.1,1580.0,0.00949457]
[1744799220254,2.86944,1580.1,1580.0,0.00949457]
[1744799220444,6.07724,1580.1,1580.0,0.00949457]
[1744799224356,1.26616,1579.7,1579.6,2.92739]
[1744799224659,1.26616,1579.7,1579.6,3.02019]
[1744799224854,2.4804,1579.7,1579.6,40.8]
[1744799225155,3.74656,1579.7,1579.6,40.8]
[1744799225455,4.57656,1579.7,1579.6,40.8]
[1744799226651,4.57656,1579.7,1579.6,42.06624]
[1744799227259,4.57656,1579.7,1579.6,40.8]
[1744799227660,4.57656,1579.7,1579.6,42.06624]
[1744799228254,7.6508,1579.9,1579.7,1.26611]
[1744799228255,4.443,1579.9,1579.7,1.26611]
[1744799228456,1.26608,1579.8,1579.7,2.87561]
[1744799229155,1.26608,1579.8,1579.7,1.6095]
[1744799229355,3.80488,1579.8,1579.7,1.6095]
[1744799229557,1.26616,1579.7,1579.6,42.9338]
[1744799229862,2.98306,1579.7,1579.6,42.9338]
[1744799230363,2.98306,1579.7,1579.6,44.6531]
[1744799233970,3.16504,1579.9,1579.6,49.6531]
[1744799234262,1.26606,1579.9,1579.8,1.266]